bitfinex/quotes_BTCUSD_20240620
["timestamp","ask_amount","ask_price","bid_price","bid_amount"]
[1718877644410,0.25964366,65852.0,65851.0,0.23656046]
[1718877646991,0.25964366,65852.0,65851.0,0.24938327]
[1718877646992,0.12286,65852.0,65851.0,0.24938327]
[1718877647288,0.02286,65852.0,65851.0,0.2743216]
[1718877651157,0.01339974,65852.0,65851.0,0.2743216]
[1718877651474,0.01339974,65852.0,65851.0,0.26424039]
[1718877651678,0.01339974,65852.0,65851.0,0.26604039]
[1718877651881,0.01339974,65852.0,65851.0,0.27612257]
[1718877655204,0.01339974,65852.0,65851.0,0.27502257]
[1718877658615,0.0119171,65852.0,65851.0,0.27502257]
[1718877660306,0.0119171,65852.0,65851.0,0.26494039]
[1718877660644,0.0119171,65852.0,65851.0,0.2750211]
[1718877660865,0.0119171,65852.0,65851.0,0.1782211]
[1718877661750,0.0119171,65852.0,65851.0,0.04784185]
[1718877661996,0.0119171,65852.0,65851.0,0.02290352]
[1718877665427,0.0119171,65852.0,65851.0,0.03498277]
[1718877665852,0.0119171,65852.0,65851.0,0.03592877]
[1718877675096,0.0119171,65852.0,65851.0,0.02384952]
[1718877675297,0.0119171,65852.0,65851.0,0.03592877]
[1718877677584,0.0349171,65852.0,65851.0,0.03592877]
[1718877677779,0.0349171,65852.0,65851.0,0.02584806]
[1718877678576,0.0349171,65852.0,65851.0,0.01376881]
[1718877678997,0.0349171,65852.0,65851.0,0.02527894]
[1718877679350,0.0349171,65852.0,65851.0,0.01245613]
[1718877679552,0.0349171,65852.0,65851.0,0.02527894]
[1718877680457,0.17171089,65852.0,65851.0,0.02527894]
[1718877680665,0.27171089,65852.0,65851.0,0.02527894]
[1718877680813,0.1349171,65852.0,65851.0,0.02527894]
[1718877681945,0.0349171,65852.0,65851.0,0.01376881]
[1718877687702,0.0935171,65852.0,65851.0,0.01376881]
[1718877688107,0.0935171,65852.0,65851.0,0.0252801]
[1718877688308,0.0349171,65852.0,65851.0,0.0252801]
[1718877691786,0.0349171,65852.0,65851.0,0.28030528]
[1718877691787,0.0119171,65852.0,65851.0,0.28030528]
[1718877692000,0.1119171,65852.0,65851.0,0.25465935]
[1718877692203,0.0119171,65852.0,65851.0,0.25465935]
[1718877693021,0.0349171,65852.0,65851.0,0.25465935]
[1718877693192,0.02386,65852.0,65851.0,0.28112529]
[1718877693488,0.03086,65852.0,65851.0,0.28112529]
[1718877696316,0.02142829,65857.0,65854.0,0.2142]
[1718877696517,0.1586,65860.0,65856.0,0.01207925]
[1718877697075,0.1586,65860.0,65859.0,0.01207925]
[1718877697279,0.0586,65860.0,65859.0,0.13437925]
[1718877697409,0.0586,65860.0,65859.0,0.14587959]
[1718877697608,0.5586,65860.0,65859.0,0.1724378]
[1718877698334,0.5726,65860.0,65859.0,0.1734378]
[1718877698655,0.72867953,65860.0,65859.0,0.1734378]
[1718877698831,0.72953953,65860.0,65859.0,0.1734378]
[1718877699224,0.73753953,65860.0,65859.0,0.0521378]
[1718877699659,0.73753953,65860.0,65859.0,0.02557959]
[1718877700649,0.67893953,65860.0,65859.0,0.02557959]
[1718877701064,0.73753953,65860.0,65859.0,0.02557959]
[1718877703280,0.67893953,65860.0,65859.0,0.02557959]
[1718877703681,0.67893953,65860.0,65859.0,0.23937959]
[1718877703868,0.67893953,65860.0,65859.0,0.26559983]
[1718877704506,0.17893953,65860.0,65859.0,0.26559983]
[1718877704707,0.16493953,65860.0,65859.0,0.26459983]
[1718877704918,0.06493953,65860.0,65859.0,0.26459983]
[1718877705108,0.16993953,65860.0,65859.0,0.26559983]
[1718877705687,0.80677453,65860.0,65859.0,0.26559983]
[1718877705888,0.29877453,65860.0,65859.0,0.26459983]
[1718877706358,0.30277453,65860.0,65859.0,0.17079983]
[1718877708387,0.16593953,65860.0,65859.0,0.17079983]
[1718877715598,0.16593953,65860.0,65859.0,0.15929949]
[1718877715748,0.66593953,65860.0,65859.0,0.15929949]
[1718877716136,0.16593953,65860.0,65859.0,0.15929949]
[1718877716378,0.16593953,65860.0,65859.0,0.17079841]
[1718877716531,0.56593953,65860.0,65859.0,0.17079841]
[1718877716760,0.66593953,65860.0,65859.0,0.17079841]
[1718877716956,0.66593953,65860.0,65859.0,0.15929949]
[1718877717322,0.16593953,65860.0,65859.0,0.15929949]
[1718877717527,0.16593953,65860.0,65859.0,0.17083257]
[1718877717977,0.66593953,65860.0,65859.0,0.17083257]
[1718877718174,0.66593953,65860.0,65859.0,0.15929949]
[1718877718375,0.16593953,65860.0,65859.0,0.13307925]
[1718877718733,0.16593953,65860.0,65859.0,0.14461233]
[1718877719089,0.66593953,65860.0,65859.0,0.14461233]
[1718877719500,0.66593953,65860.0,65859.0,0.13307925]
[1718877720676,0.66593953,65860.0,65859.0,0.15142006]
[1718877722185,0.66593953,65860.0,65859.0,0.13934081]
[1718877722359,0.72453953,65860.0,65859.0,0.001]
[1718877722775,0.74973953,65860.0,65859.0,0.001]
[1718877722975,0.74973953,65860.0,65857.0,0.01282281]
[1718877722976,0.24973953,65860.0,65851.0,0.000946]
[1718877723176,0.0586,65852.0,65851.0,0.000946]
[1718877724413,0.0596,65852.0,65851.0,0.006946]
[1718877724621,4.239009,65852.0,65851.0,0.006946]
[1718877724815,4.27394529,65852.0,65842.0,0.476]
[1718877725090,0.0586,65847.0,65842.0,0.476]
[1718877725291,0.0586,65847.0,65842.0,0.561694]
[1718877725704,0.0586,65847.0,65842.0,0.476]
[1718877726107,0.0586,65847.0,65842.0,0.477]
[1718877726419,0.0586,65847.0,65842.0,0.476]
[1718877726710,0.0586,65847.0,65841.0,0.01207925]
[1718877726711,0.1626,65847.0,65841.0,0.01207925]
[1718877726917,0.023,65846.0,65841.0,0.01207925]
[1718877727488,0.023,65846.0,65843.0,0.01]
[1718877728283,0.0586,65844.0,65843.0,0.01]
[1718877728481,0.0816,65844.0,65843.0,0.01]
[1718877729936,0.0816,65844.0,65843.0,0.013]
[1718877730364,0.0816,65844.0,65843.0,0.003]
[1718877730738,0.0816,65844.0,65843.0,0.01702525]
[1718877731316,0.0816,65844.0,65843.0,0.01602525]
[1718877731513,0.0816,65844.0,65843.0,0.030908]
[1718877731931,0.0816,65844.0,65843.0,0.01882875]
[1718877732126,0.0816,65844.0,65843.0,0.006946]
[1718877732336,0.0816,65844.0,65843.0,0.030908]
[1718877732545,0.0816,65844.0,65843.0,0.01882875]
[1718877732764,0.0816,65844.0,65843.0,0.01902525]
[1718877733169,0.0816,65844.0,65843.0,0.01602525]
[1718877733580,0.0816,65844.0,65843.0,0.01502525]
[1718877733804,0.0816,65844.0,65843.0,0.0269076]
[1718877734029,0.0816,65844.0,65843.0,0.01682835]
[1718877734234,0.0816,65844.0,65843.0,0.004946]
[1718877734468,0.0816,65844.0,65843.0,0.002946]
[1718877734804,0.0816,65844.0,65843.0,0.01682835]
[1718877735195,0.0816,65844.0,65843.0,0.01482835]
[1718877735402,0.0816,65844.0,65843.0,0.01282835]
[1718877735609,0.0826,65844.0,65843.0,0.01382835]
[1718877736117,0.0826,65844.0,65843.0,0.001946]
[1718877736118,0.0816,65844.0,65843.0,0.001946]
[1718877736620,0.0826,65844.0,65843.0,0.001946]
[1718877736775,0.024,65844.0,65843.0,0.001946]
[1718877736937,0.0826,65844.0,65843.0,0.01282835]
[1718877737355,0.0836,65844.0,65843.0,0.01282835]
[1718877737783,0.025,65844.0,65843.0,0.01282835]
[1718877737954,0.0836,65844.0,65843.0,0.01282835]
[1718877739406,0.11626252,65844.0,65843.0,0.01282835]
[1718877739603,0.21626252,65844.0,65843.0,0.01282835]
[1718877741793,0.0123,65843.0,65839.0,0.000946]
[1718877741922,0.0586,65840.0,65839.0,1e-06]
[1718877742108,0.0709,65840.0,65839.0,1e-06]
[1718877742307,4.224509,65840.0,65839.0,1e-06]
[1718877742563,4.35916778,65840.0,65839.0,1e-06]
[1718877742809,0.30555878,65840.0,65839.0,1e-06]
[1718877743026,0.50180714,65840.0,65839.0,1e-06]
[1718877743231,0.51580714,65840.0,65839.0,1e-06]
[1718877743433,0.51580714,65840.0,65819.0,0.476]
[1718877743434,0.0117,65836.0,65819.0,0.476]
[1718877743582,0.0703,65829.0,65819.0,0.476]
[1718877743781,0.0709,65829.0,65819.0,0.476]
[1718877744002,4.224509,65829.0,65819.0,0.476]
[1718877744208,0.17721276,65829.0,65819.0,0.476]
[1718877744406,4.33082176,65829.0,65819.0,0.476]
[1718877744633,0.17721276,65829.0,65819.0,0.476]
[1718877744787,4.324509,65829.0,65819.0,0.476]
[1718877744999,4.36905108,65829.0,65819.0,0.476]
[1718877745520,4.40205108,65829.0,65828.0,0.25350332]
[1718877746253,4.37382374,65829.0,65828.0,0.25350332]
[1718877747368,4.367509,65829.0,65828.0,0.25350332]
[1718877747596,4.37382374,65829.0,65828.0,0.25350332]
[1718877748279,4.37382374,65829.0,65828.0,0.23450332]
[1718877753181,4.52788486,65829.0,65828.0,0.19650332]
[1718877753521,4.55614579,65829.0,65828.0,0.19650332]
[1718877754363,4.55614579,65829.0,65828.0,0.15750332]
[1718877754781,4.55616611,65829.0,65828.0,0.15750332]
[1718877754977,4.59648538,65829.0,65828.0,0.15750332]
[1718877755893,4.53788538,65829.0,65828.0,0.15750332]
[1718877756091,4.59648538,65829.0,65828.0,0.15750332]
[1718877756514,4.62358474,65829.0,65828.0,0.15750332]
[1718877757185,4.63946935,65829.0,65828.0,0.15750332]
[1718877758037,4.61118826,65829.0,65828.0,0.15750332]
[1718877761465,4.61118826,65829.0,65828.0,0.15461411]
[1718877761684,4.71118826,65829.0,65828.0,0.00404322]
[1718877762002,4.78179549,65829.0,65828.0,0.00198822]
[1718877762204,0.0021,65825.0,65814.0,0.93369034]
[1718877762406,0.0586,65816.0,65813.0,0.1139]
[1718877762612,0.0586,65816.0,65815.0,0.00900796]
[1718877762818,0.0586,65816.0,65814.0,0.00900933]
[1718877763027,4.212209,65815.0,65811.0,0.1139]
[1718877763236,0.0586,65812.0,65811.0,0.1139]
[1718877763785,4.212209,65812.0,65811.0,0.1139]
[1718877763988,0.1649149,65812.0,65811.0,0.1139]
[1718877764220,4.3415239,65812.0,65811.0,0.1139]
[1718877764449,0.1879149,65812.0,65811.0,0.1149]
[1718877764649,0.1816,65812.0,65811.0,0.001]
[1718877765104,0.1816,65812.0,65811.0,0.117]
[1718877765307,0.123,65812.0,65811.0,0.117]
[1718877765514,0.1816,65812.0,65811.0,0.117]
[1718877766283,0.0816,65812.0,65811.0,0.117]
[1718877769044,0.08791593,65812.0,65811.0,0.117]
[1718877769573,4.24152493,65812.0,65811.0,0.117]
[1718877769790,4.34152493,65812.0,65811.0,0.001]
[1718877770182,0.18791593,65812.0,65811.0,0.001]
[1718877770329,0.1816,65812.0,65811.0,0.001]
[1718877770747,0.1816,65812.0,65811.0,0.00928447]
[1718877771156,0.1816,65812.0,65811.0,0.001]
[1718877771980,0.1816,65812.0,65811.0,0.00928447]
[1718877772178,0.123,65812.0,65811.0,0.00928447]
[1718877772352,0.1846,65812.0,65811.0,0.00928447]
[1718877772770,4.338209,65812.0,65811.0,0.00928447]
[1718877772983,4.28592493,65812.0,65811.0,0.00828447]
[1718877773179,4.28592493,65812.0,65807.0,1.1176]
[1718877773180,4.34452493,65812.0,65807.0,1.1176]
[1718877773382,0.0586,65808.0,65807.0,1.1176]
[1718877773603,0.0816,65808.0,65807.0,1.1176]
[1718877773868,4.235209,65808.0,65807.0,1.1176]
[1718877774118,0.18791593,65808.0,65807.0,1.1176]
[1718877774385,4.335209,65808.0,65807.0,1.1176]
[1718877774560,0.18791593,65808.0,65807.0,1.1176]
[1718877774961,4.34152493,65808.0,65807.0,1.1176]
[1718877776442,4.34152493,65808.0,65807.0,1.1196]
[1718877777475,4.34152493,65808.0,65807.0,1.1206]
[1718877777677,4.34152493,65808.0,65807.0,1.12888995]
[1718877778026,4.34152493,65808.0,65807.0,1.01128995]
[1718877778207,4.34152493,65808.0,65807.0,1.00928995]
[1718877779002,4.34152493,65808.0,65807.0,1.00828995]
[1718877779521,4.34352493,65808.0,65807.0,1.00828995]
[1718877779724,4.34452493,65808.0,65807.0,1.00828995]
[1718877780704,4.34452529,65808.0,65807.0,1.00828995]
[1718877782089,4.34452529,65808.0,65807.0,0.98569031]
[1718877782303,4.34452529,65808.0,65807.0,0.97763168]
[1718877782510,4.34452529,65808.0,65807.0,0.97340434]
[1718877783124,4.37276025,65808.0,65807.0,0.97340434]
[1718877784366,4.31416025,65808.0,65807.0,0.94481363]
[1718877784568,4.37276025,65808.0,65807.0,0.94481363]
[1718877785010,4.31416025,65808.0,65807.0,0.94481363]
[1718877785245,4.37276025,65808.0,65807.0,0.94481363]
[1718877785454,4.41450428,65808.0,65807.0,0.94481363]
[1718877785828,4.35590428,65808.0,65807.0,1.14661363]
[1718877786086,4.41450428,65808.0,65807.0,1.14661363]
[1718877786504,4.41450428,65808.0,65807.0,1.09661363]
[1718877791718,4.35590428,65808.0,65807.0,1.09661363]
[1718877791948,4.41450428,65808.0,65807.0,1.09661363]
[1718877793181,4.35590428,65808.0,65807.0,1.09661363]
[1718877793395,4.41450428,65808.0,65807.0,1.09661363]
[1718877793778,4.35590428,65808.0,65807.0,1.09661363]
[1718877794057,4.41450428,65808.0,65807.0,1.09661363]
[1718877795272,4.41449289,65808.0,65807.0,1.09661363]
[1718877798362,4.41447621,65808.0,65807.0,1.09661363]
[1718877799375,4.40939358,65808.0,65807.0,1.09661363]
[1718877799987,4.35079358,65808.0,65807.0,1.09661363]
[1718877800181,4.40939358,65808.0,65807.0,1.10869288]
[1718877800577,4.40939358,65808.0,65807.0,1.21965677]
[1718877800578,0.15106035,65808.0,65807.0,1.21965677]
[1718877800782,0.04474403,65808.0,65807.0,1.21965677]
[1718877800999,0.04474403,65808.0,65807.0,1.37221789]
[1718877801630,0.04274403,65808.0,65807.0,1.37221789]
[1718877801871,0.04374403,65808.0,65807.0,1.37321789]
[1718877803029,0.06574403,65808.0,65807.0,1.262254]
[1718877803431,0.06674403,65808.0,65807.0,1.264254]
[1718877804202,0.06674403,65808.0,65807.0,1.11169288]
[1718877805187,0.06574403,65808.0,65807.0,1.11069288]
[1718877805362,0.06574403,65808.0,65807.0,1.09861363]
[1718877806164,0.16474403,65808.0,65807.0,1.09661363]
[1718877806607,0.16474403,65808.0,65807.0,1.09861363]
[1718877806927,0.16474403,65808.0,65807.0,1.09961363]
[1718877807102,4.31835303,65808.0,65807.0,0.89781363]
[1718877807254,4.32466935,65808.0,65807.0,0.89781363]
[1718877807660,4.35282716,65808.0,65807.0,0.89781363]
[1718877807850,4.35282716,65808.0,65807.0,0.88952368]
[1718877808053,4.35282716,65808.0,65807.0,0.88852368]
[1718877808272,4.35282716,65808.0,65807.0,0.89702832]
[1718877808478,4.35482716,65808.0,65807.0,0.89702832]
[1718877808931,4.15705411,65808.0,65807.0,0.89702832]
[1718877809303,4.15705413,65808.0,65807.0,0.89702832]
[1718877809707,4.15705413,65808.0,65807.0,0.89502832]
[1718877810130,4.15805413,65808.0,65807.0,0.89502832]
[1718877810511,0.13747413,65808.0,65807.0,0.90213946]
[1718877810865,0.13747413,65808.0,65807.0,0.89813801]
[1718877810866,4.05173781,65808.0,65807.0,0.89813801]
[1718877811048,4.18105413,65808.0,65807.0,0.89813801]
[1718877812192,4.28083251,65808.0,65807.0,0.89813801]
[1718877812570,4.28083251,65808.0,65807.0,0.88252223]
[1718877816894,4.27421991,65808.0,65807.0,0.88252223]
[1718877817108,4.28053675,65808.0,65807.0,0.88252223]
[1718877817875,4.27753675,65808.0,65807.0,0.88252223]
[1718877818278,4.28553675,65808.0,65807.0,0.81685224]
[1718877819289,4.28553675,65808.0,65807.0,0.77668566]
[1718877819762,0.26495675,65808.0,65807.0,0.77668566]
[1718877819962,0.25863991,65808.0,65807.0,0.77668566]
[1718877820164,4.28721991,65808.0,65807.0,0.78867916]
[1718877820345,0.27295675,65808.0,65807.0,0.78867916]
[1718877820551,0.28884136,65808.0,65807.0,0.77668566]
[1718877820772,4.30942136,65808.0,65807.0,0.77668566]
[1718877821155,0.28884136,65808.0,65807.0,0.77668566]
[1718877821502,4.25082136,65808.0,65807.0,0.77668566]
[1718877821629,4.30942136,65808.0,65807.0,0.77668566]
[1718877827190,4.30934538,65808.0,65807.0,0.77668566]
[1718877828614,4.25074538,65808.0,65807.0,0.77668566]
[1718877828810,4.30934538,65808.0,65807.0,0.77668566]
[1718877829165,4.30934538,65808.0,65807.0,0.77763166]
[1718877829371,4.31020538,65808.0,65807.0,0.77763166]
[1718877830417,4.31020538,65808.0,65807.0,0.76861166]
[1718877830636,0.28962538,65808.0,65807.0,0.76723166]
[1718877830808,4.31020538,65808.0,65807.0,0.76723166]
[1718877831335,4.31020538,65808.0,65807.0,0.69231166]
[1718877831918,4.25160538,65808.0,65807.0,0.69231166]
[1718877832105,4.31030155,65808.0,65807.0,0.69231166]
[1718877832826,4.37122355,65808.0,65807.0,0.69231166]
[1718877834511,4.82709455,65808.0,65807.0,0.69231166]
[1718877834747,5.43492255,65808.0,65807.0,0.69231166]
[1718877835176,6.04275055,65808.0,65807.0,0.69231166]
[1718877835383,6.04275055,65808.0,65807.0,0.60699166]
[1718877835587,6.04275055,65808.0,65807.0,0.56799166]
[1718877835803,6.21654542,65808.0,65807.0,0.56499166]
[1718877836381,6.21654542,65808.0,65807.0,0.54699166]
[1718877837042,6.21654542,65808.0,65807.0,0.54429686]
[1718877837427,6.25437598,65808.0,65807.0,0.54429686]
[1718877838414,6.25431316,65808.0,65807.0,0.54429686]
[1718877839685,6.2544581,65808.0,65807.0,0.54429686]
[1718877840949,6.25444848,65808.0,65807.0,0.54429686]
[1718877841354,6.25444848,65808.0,65807.0,0.48129686]
[1718877841556,6.19584848,65808.0,65807.0,0.47329686]
[1718877841759,6.25444848,65808.0,65807.0,0.47329686]
[1718877842241,6.19584848,65808.0,65807.0,0.47329686]
[1718877842437,5.89193448,65808.0,65807.0,0.54229115]
[1718877842640,2.73835448,65808.0,65807.0,0.70107611]
[1718877842841,1.22797839,65808.0,65807.0,0.71068762]
[1718877843217,1.2216614,65808.0,65807.0,0.78871098]
[1718877843739,1.2136614,65808.0,65807.0,0.78871098]
[1718877844593,1.2056614,65808.0,65807.0,0.78871098]
[1718877845004,1.2296614,65808.0,65807.0,0.78871098]
[1718877845221,1.2306614,65808.0,65807.0,0.79071098]
[1718877846410,0.59367546,65808.0,65807.0,0.9532721]
[1718877846656,0.74563246,65808.0,65807.0,0.9532721]
[1718877848066,0.03985474,65811.0,65810.0,0.02]
[1718877848276,0.303886,65814.0,65813.0,0.10527925]
[1718877848277,0.455829,65814.0,65813.0,0.10527925]
[1718877848523,0.455829,65814.0,65813.0,0.2403637]
[1718877848524,0.555829,65814.0,65813.0,0.2403637]
[1718877848729,0.859716,65814.0,65813.0,0.29605836]
[1718877849134,0.89936022,65814.0,65813.0,0.29605836]
[1718877850120,0.89936022,65814.0,65813.0,0.29845447]
[1718877851145,0.90136022,65814.0,65813.0,0.29845447]
[1718877852000,0.90236022,65814.0,65813.0,0.29845447]
[1718877852208,0.90336022,65814.0,65813.0,0.29845447]
[1718877853056,0.59947322,65814.0,65813.0,0.46101559]
[1718877853259,0.101,65814.0,65813.0,0.51961559]
[1718877853469,0.252943,65814.0,65813.0,0.51961559]
[1718877853670,0.254943,65814.0,65813.0,0.51961559]
[1718877854287,0.252943,65814.0,65813.0,0.51961559]
[1718877854489,0.251943,65814.0,65813.0,0.51961559]
[1718877854665,0.251943,65814.0,65813.0,0.46301559]
[1718877854885,0.252943,65814.0,65813.0,0.52461559]
[1718877855088,0.252943,65814.0,65813.0,0.52261559]
[1718877855448,0.101,65814.0,65813.0,0.52261559]
[1718877855695,0.001,65814.0,65813.0,0.52261559]
[1718877856630,0.0397348,65820.0,65819.0,0.23117925]
[1718877856831,0.303834,65826.0,65819.0,0.23117925]
[1718877856832,0.455763,65824.0,65823.0,0.02207925]
[1718877857117,0.478763,65824.0,65823.0,0.24311272]
[1718877858566,0.480763,65824.0,65823.0,0.24311272]
[1718877858721,0.580763,65824.0,65823.0,0.24311272]
[1718877858922,0.580763,65824.0,65823.0,0.2910519]
[1718877860456,0.583763,65824.0,65823.0,0.2910519]
[1718877860659,0.105,65824.0,65823.0,0.50221302]
[1718877861283,0.102,65824.0,65823.0,0.50221302]
[1718877861461,0.102,65824.0,65823.0,0.50321302]
[1718877861683,0.1,65824.0,65823.0,0.50321302]
[1718877862087,0.1,65824.0,65823.0,0.50521302]
[1718877862309,0.1,65827.0,65826.0,0.2325]
[1718877862558,0.1,65827.0,65826.0,0.49660167]
[1718877862760,0.251913,65827.0,65826.0,0.50851846]
[1718877864342,0.251913,65827.0,65826.0,0.50951846]
[1718877865028,0.251913,65827.0,65826.0,0.51151846]
[1718877865526,0.555739,65827.0,65826.0,0.44291846]
[1718877867261,0.555739,65827.0,65826.0,0.45291846]
[1718877867665,0.555739,65827.0,65826.0,0.44291846]
[1718877868309,0.859565,65827.0,65826.0,0.44291846]
[1718877868508,0.859565,65827.0,65826.0,0.29035734]
[1718877868713,1.186391,65827.0,65826.0,0.23949604]
[1718877869140,1.186391,65827.0,65826.0,0.22757925]
[1718877871635,1.186391,65827.0,65826.0,0.01507925]
[1718877872805,1.186391,65827.0,65826.0,0.003]
[1718877873016,1.186391,65827.0,65826.0,0.01507925]
[1718877873433,1.186391,65827.0,65826.0,0.003]
[1718877873855,1.186391,65827.0,65826.0,0.01507925]
[1718877874699,1.186391,65827.0,65826.0,0.003]
[1718877875133,1.604917,65827.0,65826.0,0.003]
[1718877875761,1.604917,65827.0,65826.0,0.001]
[1718877876189,1.063408,65826.0,65825.0,0.01207925]
[1718877876400,1.186408,65826.0,65825.0,0.01207925]
[1718877876600,1.19272129,65826.0,65825.0,0.01207925]
[1718877876813,1.063422,65825.0,65824.0,0.01207925]
[1718877877019,1.186422,65825.0,65824.0,0.01207925]
[1718877879129,1.186422,65825.0,65824.0,0.01407925]
[1718877879744,1.186422,65825.0,65824.0,0.01507925]
[1718877883370,1.245022,65825.0,65824.0,0.01507925]
[1718877884047,1.548857,65825.0,65824.0,0.003]
[1718877887223,1.548857,65825.0,65824.0,0.002]
[1718877887871,1.063489,65821.0,65820.0,0.1006]
[1718877888080,0.578781,65821.0,65820.0,0.02257793]
[1718877888275,1.490343,65821.0,65820.0,0.02257793]
[1718877889289,1.063538,65818.0,65817.0,0.01207925]
[1718877889488,1.186538,65818.0,65817.0,0.01207925]
[1718877889692,1.186538,65818.0,65817.0,0.02399454]
[1718877890580,1.187538,65818.0,65817.0,0.02599454]
[1718877890760,1.187538,65818.0,65817.0,0.01407925]
[1718877891791,1.188538,65818.0,65817.0,0.01807925]
[1718877896834,1.189398,65818.0,65817.0,0.04092178]
[1718877897186,1.189398,65818.0,65817.0,0.13842178]
[1718877899866,1.551866,65818.0,65817.0,0.006]
[1718877900787,1.550866,65818.0,65817.0,0.004]
[1718877900991,1.59328476,65818.0,65817.0,0.004]
[1718877901191,1.59328476,65818.0,65808.0,0.000946]
[1718877901192,0.151954,65809.0,65808.0,0.000946]
[1718877901432,0.151954,65809.0,65808.0,0.01288278]
[1718877901433,0.941372,65809.0,65808.0,0.01288278]
[1718877901746,1.54919,65809.0,65808.0,0.01288278]
[1718877902908,1.55019,65809.0,65808.0,0.01688278]
[1718877903308,1.49159,65809.0,65808.0,0.01688278]
[1718877903510,1.49159,65809.0,65808.0,0.02896203]
[1718877903829,1.49259,65809.0,65808.0,0.03096203]
[1718877904032,1.49259,65809.0,65808.0,0.01888278]
[1718877904262,1.49259,65809.0,65808.0,0.03096203]
[1718877904375,1.49259,65809.0,65808.0,0.01888278]
[1718877904577,1.49259,65809.0,65808.0,0.03096203]
[1718877905280,1.49259,65809.0,65808.0,0.01888278]
[1718877909337,1.49259,65809.0,65808.0,0.03096203]
[1718877909493,1.188681,65809.0,65808.0,0.15776424]
[1718877909693,0.861772,65809.0,65808.0,0.36286424]
[1718877910645,0.861772,65809.0,65808.0,0.37286424]
[1718877911079,0.884772,65809.0,65808.0,0.37286424]
[1718877911566,0.884772,65809.0,65808.0,0.29658252]
[1718877912268,0.884772,65809.0,65808.0,0.28289354]
[1718877912683,0.884772,65809.0,65808.0,0.29289354]
[1718877912882,0.92720477,65809.0,65808.0,0.28289354]
[1718877915862,0.92720477,65809.0,65808.0,0.29289354]
[1718877919575,0.102,65809.0,65808.0,0.50405466]
[1718877921381,0.002,65809.0,65808.0,0.50405466]
[1718877921579,0.102,65809.0,65808.0,0.50405466]
[1718877922740,0.002,65809.0,65808.0,0.50405466]
[1718877923464,0.153954,65809.0,65808.0,0.23237305]
[1718877923665,0.176954,65809.0,65808.0,0.23237305]
[1718877923896,0.884772,65809.0,65808.0,0.23237305]
[1718877929562,1.326581,65809.0,65808.0,0.02727305]
[1718877929768,1.385181,65809.0,65808.0,0.02727305]
[1718877929942,1.385181,65809.0,65808.0,0.01902525]
[1718877930081,1.385181,65809.0,65808.0,0.006946]
[1718877930283,1.385181,65809.0,65808.0,0.01902525]
[1718877930508,1.385181,65809.0,65808.0,0.01521285]
[1718877931937,1.385181,65809.0,65808.0,0.0272921]
[1718877932108,1.299581,65809.0,65808.0,0.0272921]
[1718877932916,1.60349,65809.0,65808.0,0.01521285]
[1718877934012,5.62407,65809.0,65808.0,0.01521285]
[1718877934304,5.66195966,65809.0,65808.0,0.006946]
[1718877934860,5.89813923,65809.0,65808.0,0.006946]
[1718877935079,5.92513923,65809.0,65808.0,0.006946]
[1718877935674,5.92513923,65809.0,65808.0,0.004946]
[1718877935881,5.92413923,65809.0,65808.0,0.004946]
[1718877936285,5.95549944,65809.0,65808.0,0.004946]
[1718877936522,6.25940844,65809.0,65808.0,0.004946]
[1718877936726,6.45460733,65809.0,65808.0,0.004946]
[1718877936935,6.31700844,65809.0,65808.0,0.000946]
[1718877937310,6.36380655,65809.0,65808.0,0.000946]
[1718877938859,1.53441111,65808.0,65807.0,0.47172677]
[1718877938997,2.02758349,65808.0,65807.0,0.47172677]
[1718877939401,6.04816349,65808.0,65807.0,0.47172677]
[1718877940229,6.04985279,65808.0,65807.0,0.47172677]
[1718877940850,6.05085279,65808.0,65807.0,0.47172677]
[1718877941089,6.28868565,65808.0,65807.0,0.47172677]
[1718877942449,6.30457026,65808.0,65807.0,0.47172677]
[1718877943101,6.30457026,65808.0,65807.0,0.46174032]
[1718877943383,6.26789582,65808.0,65807.0,0.46174032]
[1718877943566,6.3026822,65808.0,65807.0,0.46174032]
[1718877943717,6.3106822,65808.0,65807.0,0.46174032]
[1718877944160,6.3186822,65808.0,65807.0,0.46174032]
[1718877944690,6.47124332,65808.0,65807.0,0.40072746]
[1718877944861,6.47124332,65808.0,65807.0,0.39874032]
[1718877946747,6.47124332,65808.0,65807.0,0.39750775]
[1718877946947,6.53216532,65808.0,65807.0,0.39479395]
[1718877948659,6.48736721,65808.0,65807.0,0.39479395]
[1718877952775,6.48708795,65808.0,65807.0,0.39479395]
[1718877952984,6.53188606,65808.0,65807.0,0.39479395]
[1718877956070,6.48708795,65808.0,65807.0,0.31824148]
[1718877958131,6.49517,65808.0,65807.0,0.31824148]
[1718877958689,6.799084,65808.0,65807.0,0.31824148]
[1718877959531,6.857684,65808.0,65807.0,0.31824148]
[1718877959822,6.85769416,65808.0,65807.0,0.29922148]
[1718877960194,6.85769416,65808.0,65807.0,0.23422148]
[1718877960404,6.89672745,65808.0,65807.0,0.23422148]
[1718877961348,6.85769416,65808.0,65807.0,0.23422148]
[1718877961584,6.86866523,65808.0,65807.0,0.23422148]
[1718877961796,6.94181005,65808.0,65807.0,0.23422148]
[1718877962006,6.94181005,65808.0,65807.0,4.8e-07]
[1718877962211,0.7599,65798.0,65797.0,0.0874]
[1718877962425,0.455953,65796.0,65795.0,0.00948199]
[1718877962634,0.859922,65796.0,65795.0,0.00948199]
[1718877962834,1.49086,65796.0,65795.0,0.00948199]
[1718877963007,1.794829,65796.0,65795.0,0.00948199]
[1718877963236,1.80114613,65796.0,65795.0,0.00948199]
[1718877963465,5.82172613,65796.0,65795.0,0.00948199]
[1718877963650,5.82272613,65796.0,65795.0,0.01248199]
[1718877964050,6.05955899,65796.0,65795.0,0.00948199]
[1718877964249,2.04766186,65796.0,65795.0,0.00948199]
[1718877964430,2.08207659,65796.0,65795.0,0.00948199]
[1718877965380,6.10265659,65796.0,65795.0,0.00948199]
[1718877970523,6.16125659,65796.0,65795.0,0.00948199]
[1718877971518,6.16139442,65796.0,65795.0,0.00948199]
[1718877971854,5.92356156,65796.0,65795.0,0.00948199]
[1718877972125,6.14839912,65796.0,65795.0,0.00948199]
[1718877974723,6.21604517,65796.0,65795.0,0.00948199]
[1718877977001,6.21604517,65796.0,65795.0,0.10058199]
[1718877978448,6.21604517,65796.0,65795.0,0.09658199]
[1718877979458,6.15744517,65796.0,65795.0,0.12019741]
[1718877979661,1.86363053,65796.0,65795.0,0.24897666]
[1718877979836,1.80503053,65796.0,65795.0,0.24897666]
[1718877980042,4.39503053,65796.0,65795.0,0.21328199]
[1718877980348,1.83661769,65796.0,65795.0,0.21328199]